fUSD/lending_fUSD_20260213
["ID","MTS","AMOUNT","RATE_DAILY","PERIOD"]
[405294116,1770953432060,-29.77067577,9.497e-05,2]
[405294117,1770953432071,-150.0,9.497e-05,2]
[405294118,1770953432080,-295.50360614,9.497e-05,2]
[405294119,1770953432095,-4.49639386,9.497e-05,2]
[405294120,1770953432105,-801.35160614,9.498e-05,2]
[405294121,1770953432117,-328.0184482,9.498e-05,2]
[405294122,1770953432136,-76128.68564566,9.498e-05,2]
[405294123,1770953432145,-1083803.64475787,9.498e-05,2]
[405294124,1770953432156,-166213.16413527,9.498e-05,2]
[405294125,1770953432168,-249983.19110686,9.498e-05,2]
[405294126,1770953432177,-250.0,9.533e-05,2]
[405294127,1770953432187,-203.58060454,9.597e-05,2]
[405294128,1770953432197,-8221.2307,9.697e-05,2]
[405294129,1770953432210,-169.616,9.697e-05,2]
[405294130,1770953432220,-555.96232583,9.697e-05,2]
[405294131,1770953432232,-445.02667417,9.697e-05,2]
[405294132,1770953432241,-9999.99,9.697e-05,2]
[405294133,1770953432251,-150.99,9.697e-05,2]
[405294134,1770953432261,-10000.0,9.698e-05,2]
[405294135,1770953432271,-599.6611,9.698e-05,2]
[405294136,1770953432281,-259.7041,9.698e-05,2]
[405294137,1770953432291,-9999.99,9.7e-05,2]
[405294139,1770953432300,-200.0,9.7e-05,3]
[405294140,1770953432309,-5000.01,9.734e-05,2]
[405294143,1770953432319,-550.56,9.791e-05,2]
[405294145,1770953432329,-500.0,9.8e-05,3]
[405294146,1770953432339,-932.61,9.846e-05,2]
[405294148,1770953432349,-800.0,9.9e-05,3]
[405294150,1770953432359,-169.38369096,0.0001,2]
[405294151,1770953432368,-1000.0,0.0001,3]
[405294153,1770953432378,-399.8884574,0.0001,2]
[405294155,1770953432387,-1357.82,0.00010026,2]
[405294156,1770953432397,-250.0,0.00010203,2]
[405294158,1770953432409,-550.56,0.00010306,2]
[405294160,1770953432418,-1680.0,0.00010446,2]
[405294161,1770953432427,-255.0,0.00010446,2]
[405294163,1770953432437,-287.0,0.00010446,2]
[405294165,1770953432446,-170.67969155,0.000105,2]
[405294166,1770953432456,-186.18946021,0.000105,2]
[405294167,1770953432465,-183.08750648,0.000105,2]
[405294168,1770953432475,-282.00477734,0.000105,2]
[405294169,1770953432484,-500.0,0.00010521,2]
[405294170,1770953432498,-882.82578138,0.00010559,2]
[405294171,1770953432509,-659.54526032,0.00010566,2]
[405294172,1770953432519,-1000.0,0.00010572,2]
[405294173,1770953432530,-32832.125,0.00010572,2]
[405294174,1770953432540,-200.0,0.00010632,2]
[405294175,1770953432550,-500.0,0.00010632,2]
[405294176,1770953432560,-165.46002286,0.00010632,2]
[405294177,1770953432570,-200.0,0.00010632,2]
[405294178,1770953432580,-500.0,0.00010685,2]
[405294179,1770953432589,-150.0,0.00010685,2]
[405294180,1770953432599,-168.43455527,0.00010685,2]
[405294181,1770953432608,-213.89347624,0.00010685,2]
[405294182,1770953432619,-500.0,0.0001074,2]
[405294183,1770953432629,-150.0,0.0001074,2]
[405294184,1770953432641,-500.0,0.00010795,2]
[405294185,1770953432651,-207.47815207,0.00010795,2]
[405294186,1770953432661,-1300.0,0.000108,3]
[405294187,1770953432670,-550.56,0.00010822,2]
[405294188,1770953432680,-167.12,0.00010838,2]
[405294189,1770953432690,-500.0,0.00010849,2]
[405294190,1770953432699,-500.0,0.00010849,2]
[405294191,1770953432708,-5760.70691882,0.000109,2]
[405294192,1770953432717,-5760.70691878,0.000109,2]
[405294193,1770953432994,-200.0,0.000109,3]
[405294194,1770953433011,-500.0,0.00010904,2]
[405294195,1770953433021,-250.0,0.00010918,2]
[405294196,1770953433033,-9413.46,0.00010959,2]
[405294197,1770953433042,-150.0,0.00010959,2]
[405294198,1770953433051,-150.0,0.00010959,2]
[405294199,1770953433060,-500.0,0.00010959,2]
[405294200,1770953433068,-258.70300331,0.00010998,2]
[405294201,1770953433077,-198.15216176,0.00010998,2]
[405294202,1770953433086,-165.17367708,0.00010999,2]
[405294203,1770953433098,-1254.41808677,0.00010999,2]
[405294207,1770953437999,-500.0,0.00010998,2]
[405294208,1770953438009,-587.05673712,0.00010998,2]
[405294209,1770953438019,-500.0,0.00010998,2]
[405294210,1770953438029,-3988.84659867,0.00010999,2]
[405294211,1770953438054,-622.153193,0.00010999,2]
[405294212,1770953438066,-30730.83141227,0.00010999,2]
[405294213,1770953438111,-785.2390966,0.00010999,2]
[405294214,1770953438123,-352.98,0.00010999,2]
[405294215,1770953438167,-2889.84169753,0.00010999,2]
[405294216,1770953438179,-2418.07525,0.00010999,2]
[405294219,1770953440070,-556.22311303,9.398e-05,2]
[405294220,1770953440125,-293.5444581,9.398e-05,2]
[405294221,1770953440338,-28523.4316544,9.398e-05,2]
[405294222,1770953440392,-412.0,9.398e-05,2]
[405294225,1770953446113,-1222.70200037,9.398e-05,2]
[405294226,1770953446247,-79.05733308,9.398e-05,2]
[405294243,1770953738853,-800.791,9.21e-05,2]
[405294244,1770953738879,-125.2904673,9.21e-05,2]
[405294245,1770953738940,-44.3255327,9.21e-05,2]
[405294246,1770953773440,162.53028331,9.2e-05,2]
[405294247,1770953773542,170.0484533,9.2e-05,2]
[405294248,1770953773599,171.9279958,9.2e-05,2]
[405294249,1770953773670,229.98461946,9.2e-05,2]
[405294252,1770953827390,157.53,7.14e-05,2]
[405294253,1770953844252,222.0,0.00022,120]
[405294255,1770953860030,222.0,0.0002,30]
[405294256,1770953897668,155.0,0.00022,120]
[405294257,1770953938625,155.0,0.0002,30]
[405294258,1770953955953,222.0,0.00022,120]
[405294259,1770954016607,155.0,0.00022,120]
[405294260,1770954027780,155.0,0.0002,30]
[405294261,1770954166340,2939.0,0.00022,120]
[405294262,1770954379094,-500.0,9.106e-05,2]
[405294263,1770954379116,-640.633,9.112e-05,2]
[405294264,1770954379137,-169.616,9.112e-05,2]
[405294265,1770954379157,-1458.64119689,9.291e-05,2]
[405294266,1770954379178,-250.0,9.291e-05,2]
[405294267,1770954379199,-227.0,9.291e-05,2]
[405294268,1770954379220,-380.13387818,9.294e-05,2]
[405294269,1770954379242,-6373.97592493,9.297e-05,2]
[405294270,1770954382062,-10000.0,9.297e-05,2]
[405294271,1770954384635,-10000.0,9.297e-05,2]
[405294272,1770954391178,-151.0,9.294e-05,2]
[405294273,1770954391395,-6849.0,9.297e-05,2]
[405294275,1770954410318,-500.0,9.296e-05,2]
[405294276,1770954410341,-610.93971598,9.296e-05,2]
[405294277,1770954410364,-189.06028402,9.297e-05,2]
[405294302,1770954632091,-224.0,8.969e-05,2]
[405294303,1770954632101,-259.60999621,8.969e-05,2]
[405294304,1770954632113,-299.23478,8.969e-05,2]
[405294305,1770954632124,-1126.61412583,8.969e-05,2]
[405294306,1770954632146,-196.03109796,8.969e-05,2]
[405294307,1770954632156,-1683.14,9.024e-05,2]
[405294308,1770954632165,-1200.0,9.099e-05,2]
[405294309,1770954632174,-762.07173667,9.1e-05,2]
[405294310,1770954632183,-4057.04054306,9.1e-05,2]
[405294311,1770954632192,-1129.31477867,9.1e-05,2]
[405294312,1770954632202,-1221.12553917,9.1e-05,2]
[405294313,1770954632211,-150.17385361,9.27e-05,2]
[405294314,1770954632221,-300.0,9.293e-05,2]
[405294315,1770954632231,-1045.0,9.293e-05,2]
[405294316,1770954632240,-4124.86561674,9.294e-05,2]
[405294317,1770954632252,-720.05,9.294e-05,2]
[405294318,1770954632267,-10605.35438326,9.294e-05,2]
[405294319,1770954632276,-151.0,9.294e-05,2]
[405294320,1770954632285,-154.43360262,9.295e-05,2]
[405294321,1770954632295,-150.0,9.296e-05,2]
[405294322,1770954632304,-202930.42665435,9.297e-05,2]
[405294323,1770954632322,-543.4792702,9.297e-05,2]
[405294324,1770954632335,-346.40202576,9.297e-05,2]
[405294325,1770954632346,-1165.61905288,9.297e-05,2]
[405294330,1770954638374,-500.0,9.296e-05,2]
[405294331,1770954638383,-28.2266,9.296e-05,2]
[405294332,1770954638394,-471.7734,9.296e-05,2]
[405294333,1770954638404,-500.0,9.296e-05,2]
[405294334,1770954638413,-500.0,9.296e-05,2]
[405294335,1770954638423,-1464.7310634,9.297e-05,2]
[405294340,1770954640471,-117.8033142,9.296e-05,2]
[405294341,1770954640501,-382.1966858,9.296e-05,2]
[405294342,1770954640511,-174.02891528,9.296e-05,2]
[405294351,1770954646171,-325.97108472,9.296e-05,2]
[405294352,1770954646181,-500.0,9.296e-05,2]
[405294353,1770954646190,-176.17148718,9.296e-05,2]
[405294354,1770954685600,175.95,7.179e-05,2]
[405294367,1770955119598,164.0,0.0002,30]
[405294368,1770955119657,155.0,0.0002,30]
[405294369,1770955119866,155.0,0.0002,30]
[405294370,1770955120100,155.0,0.0002,30]
[405294371,1770955120321,155.0,0.0002,30]
[405294372,1770955120566,155.0,0.0002,30]
[405294373,1770955121101,155.0,0.0002,30]
[405294374,1770955121331,155.0,0.0002,30]
[405294375,1770955121546,155.0,0.0002,30]
[405294376,1770955121769,155.0,0.0002,30]
[405294377,1770955121982,155.0,0.0002,30]
[405294378,1770955122242,155.0,0.0002,30]
[405294379,1770955122476,155.0,0.0002,30]
[405294380,1770955122716,155.0,0.0002,30]
[405294381,1770955122940,155.0,0.0002,30]
[405294382,1770955123169,155.0,0.0002,30]
[405294383,1770955124515,169.0,0.0002,30]
[405294384,1770955124582,166.0,0.0002,30]
[405294385,1770955124801,166.0,0.0002,30]
[405294386,1770955125010,166.0,0.0002,30]
[405294387,1770955125340,166.0,0.0002,30]
[405294388,1770955125519,166.0,0.0002,30]
[405294396,1770955750100,-398.53,8.778e-05,2]
[405294397,1770955750126,-250.0,8.87e-05,2]
[405294398,1770955750147,-150.0,8.904e-05,2]
[405294399,1770955750171,-9201.47,8.905e-05,2]
[405294400,1770955753299,-1239.43041318,8.905e-05,2]
[405294401,1770955753322,-8760.56958682,8.905e-05,2]
[405294402,1770955755060,-10000.0,8.905e-05,2]
[405294403,1770955756522,-10000.0,8.905e-05,2]
[405294404,1770955757952,-10000.0,8.905e-05,2]
[405294405,1770955760119,-500.0,8.904e-05,2]
[405294406,1770955760141,-500.0,8.904e-05,2]
[405294407,1770955760164,-500.0,8.904e-05,2]
[405294408,1770955760185,-500.0,8.904e-05,2]
[405294409,1770955760207,-500.0,8.904e-05,2]
[405294410,1770955760229,-500.0,8.904e-05,2]
[405294411,1770955760254,-500.0,8.904e-05,2]
[405294412,1770955760276,-500.0,8.904e-05,2]
[405294413,1770955760300,-500.0,8.904e-05,2]
[405294414,1770955760324,-500.0,8.904e-05,2]
[405294415,1770955760346,-500.0,8.904e-05,2]
[405294416,1770955760368,-500.0,8.904e-05,2]
[405294417,1770955760392,-500.0,8.904e-05,2]
[405294418,1770955760416,-500.0,8.904e-05,2]
[405294419,1770955760438,-500.0,8.904e-05,2]
[405294420,1770955760461,-500.0,8.904e-05,2]
[405294421,1770955760484,-441.00683367,8.904e-05,2]
[405294422,1770955760510,-500.0,8.904e-05,2]
[405294423,1770955760532,-500.0,8.904e-05,2]
[405294424,1770955760554,-500.0,8.904e-05,2]
[405294425,1770955760576,-58.99316633,8.904e-05,2]
[405294429,1770955766752,-441.00683367,8.904e-05,2]
[405294430,1770955766775,-500.0,8.904e-05,2]
[405294431,1770955766797,-500.0,8.904e-05,2]
[405294432,1770955766819,-500.0,8.904e-05,2]
[405294433,1770955766841,-500.0,8.904e-05,2]
[405294434,1770955766863,-500.0,8.904e-05,2]
[405294435,1770955766885,-500.0,8.904e-05,2]
[405294436,1770955766908,-58.99316633,8.904e-05,2]
[405294439,1770955831237,-300.0,8.903e-05,2]
[405294440,1770955831247,-300.0,8.903e-05,2]
[405294441,1770955831256,-1200.0,8.903e-05,2]
[405294442,1770955831266,-96.30695405,8.903e-05,2]
[405294443,1770955831277,-127.69304595,8.903e-05,2]
[405294444,1770955831290,-157.1598759,8.903e-05,2]
[405294445,1770955831299,-250.0,8.904e-05,2]
[405294446,1770955831307,-441.00683367,8.904e-05,2]
[405294447,1770955831316,-500.0,8.904e-05,2]
[405294448,1770955831325,-500.0,8.904e-05,2]
[405294449,1770955831335,-500.0,8.904e-05,2]
[405294450,1770955831344,-500.0,8.904e-05,2]
[405294451,1770955831353,-500.0,8.904e-05,2]
[405294452,1770955831364,-500.0,8.904e-05,2]
[405294453,1770955831374,-500.0,8.904e-05,2]
[405294454,1770955831383,-500.0,8.904e-05,2]
[405294455,1770955831393,-500.0,8.904e-05,2]
[405294456,1770955831403,-500.0,8.904e-05,2]
[405294457,1770955831413,-500.0,8.904e-05,2]
[405294458,1770955831423,-356.24104694,8.904e-05,2]
[405294459,1770955831434,-143.75895306,8.904e-05,2]
[405294460,1770955831444,-500.0,8.904e-05,2]
[405294461,1770955831453,-221.31343338,8.904e-05,2]
[405294462,1770955831464,-278.68656662,8.904e-05,2]
[405294463,1770955831475,-15.13246698,8.904e-05,2]
[405294464,1770955831486,-484.86753302,8.904e-05,2]
[405294465,1770955831496,-500.0,8.904e-05,2]
[405294466,1770955831505,-500.0,8.904e-05,2]
[405294467,1770955831515,-402.65453852,8.904e-05,2]
[405294468,1770955831531,-97.34546148,8.904e-05,2]
[405294469,1770955831541,-500.0,8.904e-05,2]
[405294470,1770955831550,-500.0,8.904e-05,2]
[405294471,1770955831559,-500.0,8.904e-05,2]
[405294472,1770955831569,-672.63058334,8.904e-05,2]
[405294473,1770955831578,-672.63058334,8.904e-05,2]
[405294474,1770955831587,-672.63058334,8.904e-05,2]
[405294475,1770955831597,-672.63058334,8.904e-05,2]
[405294476,1770955831606,-672.63058334,8.904e-05,2]
[405294477,1770955831615,-672.63058334,8.904e-05,2]
[405294478,1770955831624,-672.63058334,8.904e-05,2]
[405294479,1770955831634,-672.63058334,8.904e-05,2]
[405294480,1770955831643,-672.63058334,8.904e-05,2]
[405294481,1770955831652,-193.59512863,8.905e-05,2]
[405294482,1770955831661,-192982.06474994,8.905e-05,2]
[405294483,1770955831684,-4261.8712743,8.905e-05,2]
[405294484,1770955831695,-1672.81804228,8.905e-05,2]
[405294485,1770955831708,-758.78,8.905e-05,2]
[405294486,1770955831799,-68492.18435029,8.905e-05,2]
[405294487,1770955831811,-5674.79778011,8.905e-05,2]
[405294488,1770955831823,-10749.43756616,8.905e-05,2]
[405294489,1770955833467,-200.0,8.905e-05,2]
[405294491,1770955837318,-349.99999999,8.904e-05,2]
[405294492,1770955837329,-1903.09560658,8.905e-05,2]
[405294493,1770955837341,-1300.6176767,8.905e-05,2]
[405294494,1770955837353,-410.0144,8.905e-05,2]
[405294495,1770955837364,-1107.94854236,8.905e-05,2]
[405294496,1770955837375,-1002.40832164,8.905e-05,2]
[405294497,1770955837386,-4150.70316796,8.905e-05,2]
[405294498,1770955837426,-16093.32144205,8.905e-05,2]
[405294499,1770955837480,-8150.2,8.905e-05,2]
[405294514,1770955839898,-150.0,0.0001157,7]
[405294895,1770955844346,-841.36208602,8.905e-05,2]
[405294896,1770955844360,-722.8955016,8.905e-05,2]
[405294903,1770955845469,-7549.99375364,8.905e-05,2]
[405294914,1770955936007,500.0,0.00017,30]
[405294915,1770955936065,500.0,0.00017,30]
[405294916,1770955936116,600.0,0.00017,30]
[405294917,1770955936547,600.0,0.00017,30]
[405294918,1770955936769,500.0,0.00017,30]
[405294919,1770955936821,500.0,0.00017,30]
[405294920,1770955937045,600.0,0.00017,30]
[405294921,1770955937096,500.0,0.00017,30]
[405294922,1770955937280,509.88687292,0.00017,30]
[405294923,1770955937330,500.0,0.00017,30]
[405294924,1770955937522,600.0,0.00017,30]
[405294925,1770955937572,500.0,0.00017,30]
[405294926,1770955938022,600.0,0.00017,30]
[405294927,1770955938072,500.0,0.00015,30]
[405294928,1770955938518,500.0,0.00015,30]
[405294929,1770955938570,600.0,0.00017,30]
[405294930,1770955939009,542.98318688,0.00015,30]
[405294931,1770955939059,600.0,0.00017,30]
[405294932,1770955939509,600.0,0.00017,30]
[405294933,1770955940006,600.0,0.00017,30]
[405294934,1770955940495,600.0,0.00017,30]
[405294935,1770955941076,600.0,0.00017,30]
[405294936,1770955941471,600.0,0.00017,30]
[405294937,1770955941889,500.0,0.00017,30]
[405294938,1770955941967,500.0,0.00017,30]
[405294939,1770955942106,600.0,0.00017,30]
[405294940,1770955942440,500.0,0.00017,30]
[405294941,1770955942491,500.0,0.00017,30]
[405294942,1770955942596,600.0,0.00017,30]
[405294943,1770955942833,500.0,0.00017,30]
[405294944,1770955942932,500.0,0.00015,30]
[405294945,1770955943081,600.0,0.00017,30]
[405294946,1770955943320,500.0,0.00017,30]
[405294947,1770955943418,634.03485545,0.00015,30]
[405294948,1770955943549,600.0,0.00015,30]
[405294949,1770955943993,500.0,0.00017,30]
[405294950,1770955944047,600.0,0.00015,30]
[405294951,1770955944275,500.0,0.00017,30]
[405294952,1770955944508,600.0,0.00015,30]
[405294953,1770955944771,500.0,0.00017,30]
[405294954,1770955944999,600.0,0.00015,30]
[405294955,1770955945244,505.83114487,0.00017,30]
[405294956,1770955945300,500.0,0.00015,30]
[405294957,1770955945459,600.0,0.00015,30]
[405294958,1770955945757,500.0,0.00015,30]
[405294959,1770955945813,499.4701768,0.00017,30]
[405294960,1770955945869,500.0,0.00017,30]
[405294961,1770955945950,600.0,0.00015,30]
[405294962,1770955946102,2300.0,0.00017,30]
[405294963,1770955946229,500.0,0.00015,30]
[405294964,1770955946324,500.0,0.00017,30]
[405294965,1770955946620,2300.0,0.00017,30]
[405294966,1770955946726,500.0,0.00015,30]
[405294967,1770955946808,500.0,0.00017,30]
[405294968,1770955946859,600.0,0.00015,30]
[405294969,1770955947090,2300.0,0.00017,30]
[405294970,1770955947248,500.0,0.00015,30]
[405294971,1770955947317,500.0,0.00017,30]
[405294972,1770955947371,600.0,0.00015,30]
[405294973,1770955947584,2300.0,0.00017,30]
[405294974,1770955947726,500.0,0.00015,30]
[405294975,1770955947821,600.0,0.00015,30]
[405294976,1770955948051,2300.0,0.00017,30]
[405294977,1770955948193,500.0,0.00015,30]
[405294978,1770955948315,500.0,0.00017,30]
[405294979,1770955948381,600.0,0.00015,30]
[405294980,1770955948529,2300.0,0.00017,30]
[405294981,1770955948700,500.0,0.00015,30]
[405294982,1770955948782,500.0,0.00017,30]
[405294983,1770955948839,600.0,0.00015,30]
[405294984,1770955949012,2300.0,0.00017,30]
[405294985,1770955949173,728.94418678,0.00015,30]
[405294986,1770955949271,500.0,0.00017,30]
[405294987,1770955949451,600.0,0.00015,30]
[405294988,1770955949505,2300.0,0.00017,30]
[405294989,1770955949786,500.0,0.00017,30]
[405294990,1770955949843,500.0,0.00017,30]
[405294991,1770955950006,2300.0,0.00017,30]
[405294992,1770955950065,600.0,0.00015,30]
[405294993,1770955950342,500.0,0.00017,30]
[405294994,1770955950471,2300.0,0.00017,30]
[405294995,1770955950534,695.34721189,0.00015,30]
[405294996,1770955950612,500.0,0.00017,30]
[405294997,1770955951268,500.0,0.00015,30]
[405294998,1770955951317,500.0,0.00017,30]
[405294999,1770955951373,2300.0,0.00017,30]
[405295000,1770955951422,500.0,0.00017,30]
[405295001,1770955951473,581.04602388,0.00015,30]
[405295002,1770955951522,500.0,0.00017,30]
[405295003,1770955951575,2300.0,0.00017,30]
[405295004,1770955951623,600.0,0.00017,30]
[405295005,1770955951673,500.0,0.00015,30]
[405295006,1770955951859,500.0,0.00017,30]
[405295007,1770955951908,600.0,0.00017,30]
[405295008,1770955951960,2300.0,0.00017,30]
[405295009,1770955952043,500.0,0.00015,30]
[405295010,1770955952405,500.0,0.00017,30]
[405295011,1770955952567,2300.0,0.00017,30]
[405295012,1770955952616,600.0,0.00017,30]
[405295013,1770955952783,500.0,0.00015,30]
[405295014,1770955952861,500.0,0.00017,30]
[405295015,1770955952911,2300.0,0.00015,30]
[405295016,1770955952961,500.0,0.00017,30]
[405295017,1770955953027,600.0,0.00017,30]
[405295018,1770955953082,500.0,0.00017,30]
[405295019,1770955953150,500.0,0.00015,30]
[405295020,1770955953211,500.0,0.00017,30]
[405295021,1770955953354,500.0,0.00017,30]
[405295022,1770955953419,600.0,0.00017,30]
[405295023,1770955953477,500.0,0.00017,30]
[405295024,1770955953533,2300.0,0.00015,30]
[405295025,1770955953589,500.0,0.00015,30]
[405295026,1770955953704,500.0,0.00017,30]
[405295027,1770955953829,500.0,0.00017,30]
[405295028,1770955953887,600.0,0.00017,30]
[405295029,1770955953942,500.0,0.00017,30]
[405295030,1770955954142,2300.0,0.00015,30]
[405295031,1770955954197,500.0,0.00015,30]
[405295032,1770955954254,500.0,0.00017,30]
[405295033,1770955954335,500.0,0.00017,30]
[405295034,1770955954390,600.0,0.00017,30]
[405295035,1770955954446,500.0,0.00017,30]
[405295036,1770955954497,2300.0,0.00015,30]
[405295037,1770955954671,500.0,0.00015,30]
[405295038,1770955954792,500.0,0.00015,30]
[405295039,1770955954843,600.0,0.00017,30]
[405295040,1770955954893,500.0,0.00015,30]
[405295041,1770955954946,2300.0,0.00015,30]
[405295042,1770955955156,676.36616378,0.00015,30]
[405295043,1770955955268,500.0,0.00015,30]
[405295044,1770955955347,600.0,0.00017,30]
[405295045,1770955955425,2300.0,0.00015,30]
[405295046,1770955955485,500.0,0.00015,30]
[405295047,1770955955751,500.0,0.00015,30]
[405295048,1770955955807,500.0,0.00015,30]
[405295049,1770955955858,600.0,0.00017,30]
[405295050,1770955955919,2300.0,0.00015,30]
[405295051,1770955955973,500.0,0.00015,30]
[405295052,1770955956077,500.0,0.00015,30]
[405295053,1770955956242,500.0,0.00015,30]
[405295054,1770955956292,600.0,0.00017,30]
[405295055,1770955956397,2300.0,0.00015,30]
[405295056,1770955956446,509.93858695,0.00015,30]
[405295057,1770955956543,751.18125993,0.00015,30]
[405295058,1770955956690,500.0,0.00015,30]
[405295059,1770955956786,600.0,0.00017,30]
[405295060,1770955956874,2300.0,0.00015,30]
[405295061,1770955957161,500.0,0.00015,30]
[405295062,1770955957269,600.0,0.00017,30]
[405295063,1770955957368,2300.0,0.00015,30]
[405295064,1770955957756,500.0,0.00015,30]
[405295065,1770955957807,600.0,0.00015,30]
[405295066,1770955957860,2300.0,0.00015,30]
[405295067,1770955958139,905.07795625,0.00015,30]
[405295068,1770955958368,2300.0,0.00015,30]
[405295069,1770955958420,600.0,0.00015,30]
[405295070,1770955958853,2300.0,0.00015,30]
[405295071,1770955958910,600.0,0.00015,30]
[405295072,1770955959309,4353.81162415,0.00015,30]
[405295073,1770955959388,600.0,0.00015,30]
[405295074,1770955959891,600.0,0.00015,30]
[405295075,1770955960367,600.0,0.00015,30]
[405295076,1770955960807,600.0,0.00015,30]
[405295077,1770955961287,600.0,0.00015,30]
[405295078,1770955961768,600.0,0.00015,30]
[405295079,1770955962266,600.0,0.00015,30]
[405295080,1770955962851,600.0,0.00015,30]
[405295081,1770955963298,1071.37376223,0.00015,30]
[405295082,1770956236033,500.0,0.00017,30]
[405295083,1770956236509,515.13578627,0.00015,30]
[405295084,1770956247389,500.0,0.00017,30]
[405295085,1770956247885,500.0,0.00017,30]
[405295086,1770956248354,500.0,0.00017,30]
[405295087,1770956248502,500.0,0.00017,30]
[405295088,1770956248677,500.0,0.00017,30]
[405295089,1770956248843,500.0,0.00017,30]
[405295090,1770956249007,500.0,0.00017,30]
[405295091,1770956249159,500.0,0.00017,30]
[405295092,1770956249339,500.0,0.00017,30]
[405295093,1770956249658,500.0,0.00015,30]
[405295094,1770956249717,561.25012331,0.00015,30]
[405295095,1770956249797,500.0,0.00017,30]
[405295096,1770956249935,504.75238726,0.00015,30]
[405295097,1770956250310,500.0,0.00017,30]
[405295098,1770956250809,500.0,0.00017,30]
[405295099,1770956251293,500.0,0.00017,30]
[405295100,1770956251792,500.0,0.00015,30]
[405295101,1770956252253,500.0,0.00015,30]
[405295102,1770956252803,500.0,0.00015,30]
[405295104,1770956253276,500.0,0.00015,30]
[405295105,1770956253773,500.0,0.00015,30]
[405295106,1770956254293,500.0,0.00015,30]
[405295107,1770956255268,500.0,0.00015,30]
[405295108,1770956255916,500.0,0.00015,30]
[405295109,1770956256259,688.03632528,0.00015,30]
[405295110,1770956299233,1152.01859292,8.804e-05,3]
[405295116,1770956456966,190.6219248,0.0002,30]
[405295117,1770956699746,-300.0,0.0001104,7]
[405295129,1770956979117,368.46064094,7.446e-05,2]
[405295130,1770956982496,204.70035608,7.446e-05,2]
[405295139,1770957031457,-271.99971469,7.838e-05,2]
[405295140,1770957031467,-250.0,8.044e-05,2]
[405295141,1770957031476,-500.0,8.086e-05,2]
[405295142,1770957031486,-309.04129286,8.219e-05,2]
[405295143,1770957031512,-1564.95870714,8.219e-05,2]
[405295144,1770957031522,-1200.0,8.503e-05,2]
[405295145,1770957031531,-300.0,8.503e-05,2]
[405295146,1770957031540,-300.0,8.503e-05,2]
[405295147,1770957031549,-150.0,8.504e-05,2]
[405295148,1770957031558,-79.99184674,8.504e-05,2]
[405295149,1770957031573,-420.00815326,8.504e-05,2]
[405295150,1770957031582,-626.41944174,8.504e-05,2]
[405295151,1770957031592,-170.94748071,8.504e-05,2]
[405295152,1770957031623,-329.05251929,8.504e-05,2]
[405295153,1770957031634,-500.0,8.504e-05,2]
[405295154,1770957031647,-500.0,8.504e-05,2]